[Event "Titled Tuesday Blitz February 07 Early 2023"]
[White "Fier, Alexandr"]
[Black "Defend, Balint"]
[WhiteFideId "2107139"]
[BlackFideId "17004853"]
[WhiteElo "2589"]
[BlackElo "1673"]
[Result "1-0"]
[Round "02"]
[TimeControl "180+2"]
[Date "2023.02.07"]
[WhiteClock "0:01:13"]
[BlackClock "0:00:06"]

1. d4 {[%clk 0:03:00]}  Nf6 {[%clk 0:03:00]} 2. Bg5 {[%clk 0:03:01]}  d5 {[%clk 0:02:59]} 3. Bxf6 {[%clk 0:03:00]}  exf6 {[%clk 0:03:00]} 4. e3 {[%clk 0:03:01]}  h5 {[%clk 0:03:00]} 5. c4 {[%clk 0:03:01]}  c6 {[%clk 0:02:59]} 6. Nc3 {[%clk 0:03:01]}  Be6 {[%clk 0:02:35]} 7. cxd5 {[%clk 0:03:00]}  Bxd5 {[%clk 0:02:27]} 8. Nxd5 {[%clk 0:03:00]}  Qxd5 {[%clk 0:02:28]} 9. Ne2 {[%clk 0:03:01]}  f5 {[%clk 0:01:55]} 10. Nc3 {[%clk 0:03:00]}  Qd7 {[%clk 0:01:55]} 11. Bc4 {[%clk 0:02:59]}  Bd6 {[%clk 0:01:51]} 12. Qf3 {[%clk 0:02:55]}  g6 {[%clk 0:01:50]} 13. h3 {[%clk 0:02:54]}  O-O {[%clk 0:01:50]} 14. g4 {[%clk 0:02:54]}  fxg4 {[%clk 0:01:34]} 15. hxg4 {[%clk 0:02:54]}  Qxg4 {[%clk 0:01:35]} 16. Qxg4 {[%clk 0:02:54]}  hxg4 {[%clk 0:01:35]} 17. Ke2 {[%clk 0:02:55]}  Kg7 {[%clk 0:01:34]} 18. Rag1 {[%clk 0:02:55]}  f5 {[%clk 0:01:32]} 19. f3 {[%clk 0:02:49]}  gxf3+ {[%clk 0:01:25]} 20. Kxf3 {[%clk 0:02:50]}  Nd7 {[%clk 0:01:21]} 21. Rg5 {[%clk 0:02:45]}  Be7 {[%clk 0:01:17]} 22. Rg2 {[%clk 0:02:44]}  Rh8 {[%clk 0:01:14]} 23. Rhg1 {[%clk 0:02:44]}  g5 {[%clk 0:01:14]} 24. Be6 {[%clk 0:02:43]}  Nf8 {[%clk 0:00:53]} 25. Bxf5 {[%clk 0:02:43]}  Ng6 {[%clk 0:00:53]} 26. Bxg6 {[%clk 0:02:29]}  Kxg6 {[%clk 0:00:54]} 27. Ke2 {[%clk 0:02:29]}  Rae8 {[%clk 0:00:51]} 28. Ne4 {[%clk 0:02:29]}  Rh5 {[%clk 0:00:50]} 29. Kd3 {[%clk 0:02:27]}  Rf8 {[%clk 0:00:48]} 30. Rg3 {[%clk 0:02:23]}  Rf5 {[%clk 0:00:45]} 31. R1g2 {[%clk 0:02:19]}  Rh1 {[%clk 0:00:45]} 32. b3 {[%clk 0:02:15]}  Rd1+ {[%clk 0:00:42]} 33. Nd2 {[%clk 0:02:14]}  c5 {[%clk 0:00:40]} 34. Ke2 {[%clk 0:02:11]}  Ra1 {[%clk 0:00:38]} 35. e4 {[%clk 0:02:05]}  Rf4 {[%clk 0:00:35]} 36. dxc5 {[%clk 0:02:05]}  Rxa2 {[%clk 0:00:34]} 37. Kd3 {[%clk 0:02:05]}  Ra1 {[%clk 0:00:32]} 38. b4 {[%clk 0:01:54]}  a5 {[%clk 0:00:25]} 39. Nb3 {[%clk 0:01:54]}  Ra3 {[%clk 0:00:24]} 40. Kd4 {[%clk 0:01:48]}  axb4 {[%clk 0:00:23]} 41. Kd5 {[%clk 0:01:48]}  Rf7 {[%clk 0:00:14]} 42. e5 {[%clk 0:01:45]}  Bd8 {[%clk 0:00:11]} 43. e6 {[%clk 0:01:41]}  Rf5+ {[%clk 0:00:11]} 44. Kd6 {[%clk 0:01:42]}  Ra6+ {[%clk 0:00:07]} 45. Kd7 {[%clk 0:01:36]}  Rd5+ {[%clk 0:00:07]} 46. Kc8 {[%clk 0:01:37]}  Rc6+ {[%clk 0:00:07]} 47. Kxb7 {[%clk 0:01:37]}  Rxe6 {[%clk 0:00:07]} 48. Rd2 {[%clk 0:01:29]}  Rxd2 {[%clk 0:00:07]} 49. Nxd2 {[%clk 0:01:30]}  Re5 {[%clk 0:00:06]} 50. c6 {[%clk 0:01:30]}  Rd5 {[%clk 0:00:06]} 51. Ne4 {[%clk 0:01:28]}  Kf5 {[%clk 0:00:06]} 52. Nf2 {[%clk 0:01:21]}  Rc5 {[%clk 0:00:06]} 53. Rf3+ {[%clk 0:01:20]}  Ke5 {[%clk 0:00:05]} 54. Nd3+ {[%clk 0:01:20]}  Ke4 {[%clk 0:00:05]} 55. Rg3 {[%clk 0:01:17]}  Rc3 {[%clk 0:00:05]} 56. Nf2+ {[%clk 0:01:16]}  Kd5 {[%clk 0:00:05]} 57. Rg1 {[%clk 0:01:13]}  Kc5 {[%clk 0:00:04]} 58. Ne4+ {[%clk 0:01:13]}  Kd4 {[%clk 0:00:03]} 59. Nxc3 {[%clk 0:01:12]}  bxc3 {[%clk 0:00:04]} 60. Rd1+ {[%clk 0:01:12]}  Kc4 {[%clk 0:00:03]} 61. Rxd8 {[%clk 0:01:12]}  c2 {[%clk 0:00:04]} 62. c7 {[%clk 0:01:13]}  Kb3 {[%clk 0:00:05]} 63. c8=Q {[%clk 0:01:13]}  Kb2 {[%clk 0:00:06]} 64. Rd2 {[%clk 0:01:13]}  Ka1 {[%clk 0:00:06]} 65. Qxc2 {[%clk 0:01:13]} 1-0


[Site "https://www.chess.com"]

[Event "Titled Tuesday Blitz February 07 Early 2023"]
[White "Zemlyanskii, Ivan"]
[Black "Ljukin, Sergei"]
[WhiteFideId "24249971"]
[BlackFideId "14102200"]
[WhiteElo "2300"]
[BlackElo "2362"]
[Result "0-1"]
[Round "02"]
[TimeControl "180+2"]
[Date "2023.02.07"]
[WhiteClock "0:00:03"]
[BlackClock "0:00:04"]

1. d4 {[%clk 0:03:00]}  d5 {[%clk 0:02:56]} 2. Bf4 {[%clk 0:03:00]}  Nf6 {[%clk 0:02:55]} 3. e3 {[%clk 0:03:00]}  c5 {[%clk 0:02:55]} 4. Nc3 {[%clk 0:02:53]}  Bg4 {[%clk 0:02:53]} 5. f3 {[%clk 0:02:44]}  Bd7 {[%clk 0:02:53]} 6. Qd2 {[%clk 0:02:32]}  Nc6 {[%clk 0:02:43]} 7. g4 {[%clk 0:02:30]}  e6 {[%clk 0:02:38]} 8. Nge2 {[%clk 0:02:29]}  Be7 {[%clk 0:02:31]} 9. h4 {[%clk 0:02:25]}  a6 {[%clk 0:02:20]} 10. Ng3 {[%clk 0:02:11]}  cxd4 {[%clk 0:02:11]} 11. exd4 {[%clk 0:02:12]}  h6 {[%clk 0:02:11]} 12. O-O-O {[%clk 0:02:05]}  Qa5 {[%clk 0:02:05]} 13. Be2 {[%clk 0:02:01]}  Bb4 {[%clk 0:02:02]} 14. g5 {[%clk 0:01:56]}  Ng8 {[%clk 0:01:56]} 15. a3 {[%clk 0:01:21]}  Bxa3 {[%clk 0:01:26]} 16. Na2 {[%clk 0:00:54]}  Bb4 {[%clk 0:01:15]} 17. c3 {[%clk 0:00:33]}  Qxa2 {[%clk 0:01:13]} 18. Bd3 {[%clk 0:00:32]}  Rc8 {[%clk 0:01:07]} 19. Bb1 {[%clk 0:00:20]}  Qa1 {[%clk 0:01:06]} 20. g6 {[%clk 0:00:17]}  f6 {[%clk 0:00:53]} 21. Nh5 {[%clk 0:00:16]}  Kf8 {[%clk 0:00:44]} 22. Kc2 {[%clk 0:00:15]}  Nge7 {[%clk 0:00:34]} 23. Kd3 {[%clk 0:00:13]}  Ba5 {[%clk 0:00:20]} 24. Bd6 {[%clk 0:00:13]}  Bc7 {[%clk 0:00:16]} 25. Ba3 {[%clk 0:00:13]}  b5 {[%clk 0:00:08]} 26. Ke2 {[%clk 0:00:12]}  a5 {[%clk 0:00:09]} 27. Bc2 {[%clk 0:00:03]}  Qa2 {[%clk 0:00:08]} 28. Ra1 {[%clk 0:00:04]}  Qc4+ {[%clk 0:00:08]} 29. Bd3 {[%clk 0:00:05]}  Qa4 {[%clk 0:00:07]} 30. Bc2 {[%clk 0:00:06]}  Qc4+ {[%clk 0:00:07]} 31. Bd3 {[%clk 0:00:07]}  Nxd4+ {[%clk 0:00:07]} 32. cxd4 {[%clk 0:00:06]}  Qxd4 {[%clk 0:00:07]} 33. Rac1 {[%clk 0:00:06]}  Qe5+ {[%clk 0:00:07]} 34. Kf1 {[%clk 0:00:05]}  Qxh5 {[%clk 0:00:08]} 35. Bc5 {[%clk 0:00:03]}  Qe5 {[%clk 0:00:08]} 36. Kg2 {[%clk 0:00:03]}  Qg3+ {[%clk 0:00:07]} 37. Kf1 {[%clk 0:00:01]}  Qxf3+ {[%clk 0:00:08]} 38. Kg1 {[%clk 0:00:02]}  Qg3+ {[%clk 0:00:08]} 39. Kf1 {[%clk 0:00:02]}  Ke8 {[%clk 0:00:06]} 40. Qe2 {[%clk 0:00:02]}  Qf4+ {[%clk 0:00:06]} 41. Kg2 {[%clk 0:00:03]}  Nf5 {[%clk 0:00:06]} 42. Be3 {[%clk 0:00:01]}  Qg3+ {[%clk 0:00:06]} 43. Kf1 {[%clk 0:00:02]}  Nxe3+ {[%clk 0:00:06]} 44. Qxe3 {[%clk 0:00:02]}  Qxe3 {[%clk 0:00:06]} 45. Bxb5 {[%clk 0:00:02]}  Bxb5+ {[%clk 0:00:06]} 46. Kg2 {[%clk 0:00:03]}  Qe4+ {[%clk 0:00:04]} 0-1


[Site "https://www.chess.com"]

[Event "Titled Tuesday Blitz February 07 Early 2023"]
[White "Fiorito, Francisco"]
[Black "Pulpan, Jakub"]
[WhiteFideId "180165"]
[BlackFideId "302759"]
[WhiteElo "2305"]
[BlackElo "2427"]
[Result "0-1"]
[Round "02"]
[TimeControl "180+2"]
[Date "2023.02.07"]
[WhiteClock "0:00:02"]
[BlackClock "0:01:08"]

1. Nf3 {[%clk 0:03:00]}  d5 {[%clk 0:02:55]} 2. g3 {[%clk 0:03:01]}  g6 {[%clk 0:02:56]} 3. Bg2 {[%clk 0:03:01]}  Bg7 {[%clk 0:02:56]} 4. d4 {[%clk 0:03:01]}  Nh6 {[%clk 0:02:56]} 5. O-O {[%clk 0:03:01]}  Nf5 {[%clk 0:02:56]} 6. c3 {[%clk 0:02:55]}  Nd6 {[%clk 0:02:54]} 7. Nfd2 {[%clk 0:02:52]}  c6 {[%clk 0:02:49]} 8. e4 {[%clk 0:02:51]}  dxe4 {[%clk 0:02:49]} 9. Nxe4 {[%clk 0:02:52]}  Nxe4 {[%clk 0:02:50]} 10. Bxe4 {[%clk 0:02:53]}  O-O {[%clk 0:02:51]} 11. Re1 {[%clk 0:02:53]}  Bh3 {[%clk 0:02:45]} 12. Bg5 {[%clk 0:02:50]}  h6 {[%clk 0:02:45]} 13. Be3 {[%clk 0:02:28]}  Nd7 {[%clk 0:02:40]} 14. Nd2 {[%clk 0:02:27]}  Nf6 {[%clk 0:02:37]} 15. Bh1 {[%clk 0:02:27]}  Ng4 {[%clk 0:02:30]} 16. Bf4 {[%clk 0:02:22]}  g5 {[%clk 0:02:27]} 17. Be3 {[%clk 0:02:08]}  Nxe3 {[%clk 0:02:26]} 18. Rxe3 {[%clk 0:02:09]}  Bf5 {[%clk 0:02:20]} 19. Be4 {[%clk 0:02:07]}  Bxe4 {[%clk 0:02:18]} 20. Nxe4 {[%clk 0:02:08]}  e6 {[%clk 0:02:12]} 21. Nc5 {[%clk 0:02:07]}  b6 {[%clk 0:02:11]} 22. Nd3 {[%clk 0:02:07]}  Qd5 {[%clk 0:02:08]} 23. Qh5 {[%clk 0:02:03]}  c5 {[%clk 0:01:58]} 24. dxc5 {[%clk 0:01:48]}  bxc5 {[%clk 0:01:59]} 25. a3 {[%clk 0:01:19]}  c4 {[%clk 0:01:49]} 26. Nb4 {[%clk 0:01:17]}  Qb7 {[%clk 0:01:45]} 27. Rb1 {[%clk 0:00:50]}  Rfd8 {[%clk 0:01:31]} 28. h4 {[%clk 0:00:36]}  a5 {[%clk 0:01:23]} 29. Nc2 {[%clk 0:00:14]}  Rd2 {[%clk 0:01:20]} 30. Ne1 {[%clk 0:00:13]}  Rxb2 {[%clk 0:01:19]} 31. Rxb2 {[%clk 0:00:13]}  Qxb2 {[%clk 0:01:20]} 32. hxg5 {[%clk 0:00:14]}  hxg5 {[%clk 0:01:21]} 33. Qxg5 {[%clk 0:00:14]}  Qxa3 {[%clk 0:01:19]} 34. Nf3 {[%clk 0:00:12]}  Qc1+ {[%clk 0:01:19]} 35. Kg2 {[%clk 0:00:12]}  a4 {[%clk 0:01:20]} 36. Qb5 {[%clk 0:00:07]}  a3 {[%clk 0:01:17]} 37. Qb7 {[%clk 0:00:07]}  Rd8 {[%clk 0:01:14]} 38. Ng5 {[%clk 0:00:07]}  Rf8 {[%clk 0:01:13]} 39. Qa7 {[%clk 0:00:06]}  Bh6 {[%clk 0:01:10]} 40. Nxe6 {[%clk 0:00:03]}  Bxe3 {[%clk 0:01:08]} 41. Qxe3 {[%clk 0:00:02]}  Qxe3 {[%clk 0:01:08]} 0-1


[Site "https://www.chess.com"]

[Event "Titled Tuesday Blitz February 07 Early 2023"]
[White "Goltsev, Dmitry"]
[Black "Shohat, Yotam"]
[WhiteFideId "24176710"]
[BlackFideId "2813955"]
[WhiteElo "2269"]
[BlackElo "2346"]
[Result "0-1"]
[Round "02"]
[TimeControl "180+2"]
[Date "2023.02.07"]
[WhiteClock "0:00:28"]
[BlackClock "0:00:07"]

1. e4 {[%clk 0:03:00]}  c5 {[%clk 0:02:59]} 2. Nf3 {[%clk 0:03:01]}  d6 {[%clk 0:02:59]} 3. d4 {[%clk 0:03:02]}  cxd4 {[%clk 0:03:00]} 4. Nxd4 {[%clk 0:03:03]}  Nf6 {[%clk 0:03:00]} 5. Nc3 {[%clk 0:03:03]}  a6 {[%clk 0:03:01]} 6. Be2 {[%clk 0:03:03]}  e6 {[%clk 0:02:59]} 7. O-O {[%clk 0:03:04]}  Be7 {[%clk 0:02:58]} 8. f4 {[%clk 0:03:04]}  Qc7 {[%clk 0:02:58]} 9. Be3 {[%clk 0:03:04]}  O-O {[%clk 0:02:51]} 10. Bf3 {[%clk 0:03:04]}  Nc6 {[%clk 0:02:47]} 11. Nb3 {[%clk 0:03:03]}  b5 {[%clk 0:02:41]} 12. e5 {[%clk 0:02:58]}  dxe5 {[%clk 0:02:38]} 13. fxe5 {[%clk 0:02:59]}  Qxe5 {[%clk 0:02:36]} 14. Re1 {[%clk 0:02:54]}  Bb7 {[%clk 0:02:31]} 15. Bb6 {[%clk 0:02:44]}  Qf4 {[%clk 0:02:12]} 16. Qe2 {[%clk 0:02:28]}  Nd7 {[%clk 0:01:39]} 17. Be3 {[%clk 0:02:23]}  Qe5 {[%clk 0:01:38]} 18. Rad1 {[%clk 0:02:22]}  Rad8 {[%clk 0:01:26]} 19. Qf2 {[%clk 0:02:20]}  Qb8 {[%clk 0:01:18]} 20. Be4 {[%clk 0:02:12]}  Nce5 {[%clk 0:01:14]} 21. Bf4 {[%clk 0:01:59]}  b4 {[%clk 0:01:04]} 22. Na4 {[%clk 0:01:53]}  Bxe4 {[%clk 0:00:53]} 23. Rxe4 {[%clk 0:01:54]}  Nf6 {[%clk 0:00:53]} 24. Rxd8 {[%clk 0:01:50]}  Rxd8 {[%clk 0:00:54]} 25. Rxe5 {[%clk 0:01:47]}  Rd1+ {[%clk 0:00:51]} 26. Re1 {[%clk 0:01:47]}  Rxe1+ {[%clk 0:00:51]} 27. Qxe1 {[%clk 0:01:48]}  Qxf4 {[%clk 0:00:51]} 28. Qf2 {[%clk 0:01:39]}  Qe5 {[%clk 0:00:45]} 29. h3 {[%clk 0:01:27]}  h5 {[%clk 0:00:43]} 30. Qd4 {[%clk 0:01:21]}  Qe1+ {[%clk 0:00:36]} 31. Kh2 {[%clk 0:01:22]}  h4 {[%clk 0:00:36]} 32. Nac5 {[%clk 0:01:16]}  Qg3+ {[%clk 0:00:28]} 33. Kg1 {[%clk 0:01:09]}  Bd6 {[%clk 0:00:29]} 34. Nd3 {[%clk 0:01:04]}  Qh2+ {[%clk 0:00:23]} 35. Kf1 {[%clk 0:01:05]}  Qh1+ {[%clk 0:00:23]} 36. Qg1 {[%clk 0:01:04]}  Qxg1+ {[%clk 0:00:20]} 37. Kxg1 {[%clk 0:01:05]}  Ne4 {[%clk 0:00:17]} 38. Na5 {[%clk 0:01:04]}  f5 {[%clk 0:00:12]} 39. Nc6 {[%clk 0:01:04]}  g5 {[%clk 0:00:06]} 40. Nd8 {[%clk 0:00:59]}  Nc5 {[%clk 0:00:04]} 41. Nxb4 {[%clk 0:00:55]}  a5 {[%clk 0:00:04]} 42. Nbc6 {[%clk 0:00:54]}  a4 {[%clk 0:00:04]} 43. b4 {[%clk 0:00:54]}  Ne4 {[%clk 0:00:02]} 44. Nxe6 {[%clk 0:00:52]}  Kf7 {[%clk 0:00:03]} 45. Ned4 {[%clk 0:00:51]}  Nc3 {[%clk 0:00:02]} 46. Nxf5 {[%clk 0:00:49]}  Bf4 {[%clk 0:00:02]} 47. a3 {[%clk 0:00:47]}  Nb1 {[%clk 0:00:03]} 48. b5 {[%clk 0:00:44]}  Nxa3 {[%clk 0:00:03]} 49. b6 {[%clk 0:00:45]}  Nxc2 {[%clk 0:00:03]} 50. Kf1 {[%clk 0:00:33]}  a3 {[%clk 0:00:03]} 51. Nfd4 {[%clk 0:00:28]}  Nxd4 {[%clk 0:00:03]} 52. Nxd4 {[%clk 0:00:29]}  a2 {[%clk 0:00:04]} 53. Nb3 {[%clk 0:00:29]}  Ke7 {[%clk 0:00:04]} 54. Ke2 {[%clk 0:00:29]}  Kd7 {[%clk 0:00:03]} 55. Kd3 {[%clk 0:00:26]}  Kc6 {[%clk 0:00:03]} 56. Kc2 {[%clk 0:00:27]}  Kxb6 {[%clk 0:00:03]} 57. Kb2 {[%clk 0:00:28]}  Kc6 {[%clk 0:00:03]} 58. Kxa2 {[%clk 0:00:29]}  Kd5 {[%clk 0:00:04]} 59. Kb2 {[%clk 0:00:28]}  Ke4 {[%clk 0:00:04]} 60. Kc2 {[%clk 0:00:28]}  Ke3 {[%clk 0:00:05]} 61. Nc5 {[%clk 0:00:24]}  Kf2 {[%clk 0:00:05]} 62. Kd3 {[%clk 0:00:24]}  Kxg2 {[%clk 0:00:04]} 63. Ke2 {[%clk 0:00:25]}  Kxh3 {[%clk 0:00:05]} 64. Kf1 {[%clk 0:00:26]}  Kh2 {[%clk 0:00:04]} 65. Ne6 {[%clk 0:00:26]}  Be3 {[%clk 0:00:04]} 66. Ng7 {[%clk 0:00:24]}  g4 {[%clk 0:00:04]} 67. Nf5 {[%clk 0:00:25]}  Bg5 {[%clk 0:00:03]} 68. Kf2 {[%clk 0:00:25]}  g3+ {[%clk 0:00:04]} 69. Ke2 {[%clk 0:00:20]}  g2 {[%clk 0:00:05]} 70. Nd4 {[%clk 0:00:20]}  g1=Q {[%clk 0:00:04]} 71. Nf3+ {[%clk 0:00:21]}  Kg2 {[%clk 0:00:05]} 72. Nxg1 {[%clk 0:00:22]}  Kxg1 {[%clk 0:00:06]} 73. Kf3 {[%clk 0:00:23]}  h3 {[%clk 0:00:07]} 74. Kg3 {[%clk 0:00:23]}  h2 {[%clk 0:00:07]} 75. Kg4 {[%clk 0:00:24]}  h1=Q {[%clk 0:00:08]} 76. Kf5 {[%clk 0:00:24]}  Qf3+ {[%clk 0:00:08]} 77. Kg6 {[%clk 0:00:25]}  Qf6+ {[%clk 0:00:09]} 78. Kh5 {[%clk 0:00:26]}  Kf2 {[%clk 0:00:09]} 79. Kg4 {[%clk 0:00:27]}  Kg2 {[%clk 0:00:07]} 80. Kh5 {[%clk 0:00:27]}  Be3 {[%clk 0:00:07]} 81. Kg4 {[%clk 0:00:28]}  Qg5# {[%clk 0:00:07]} 0-1


[Site "https://www.chess.com"]

[Event "Titled Tuesday Blitz February 07 Early 2023"]
[White "Podetti, Davide"]
[Black "Orozbaev, Eldiar"]
[WhiteFideId "893617"]
[BlackFideId "13802240"]
[WhiteElo "2281"]
[BlackElo "2235"]
[Result "0-1"]
[Round "02"]
[TimeControl "180+2"]
[Date "2023.02.07"]
[WhiteClock "0:00:58"]
[BlackClock "0:01:56"]

1. e4 {[%clk 0:03:00]}  e6 {[%clk 0:02:41]} 2. d4 {[%clk 0:02:56]}  d5 {[%clk 0:02:41]} 3. Nc3 {[%clk 0:02:54]}  Nf6 {[%clk 0:02:41]} 4. e5 {[%clk 0:02:54]}  Nfd7 {[%clk 0:02:41]} 5. f4 {[%clk 0:02:55]}  c5 {[%clk 0:02:42]} 6. Nf3 {[%clk 0:02:56]}  Nc6 {[%clk 0:02:42]} 7. Be3 {[%clk 0:02:56]}  Qb6 {[%clk 0:02:43]} 8. Na4 {[%clk 0:02:53]}  Qa5+ {[%clk 0:02:43]} 9. c3 {[%clk 0:02:51]}  cxd4 {[%clk 0:02:44]} 10. b4 {[%clk 0:02:51]}  Nxb4 {[%clk 0:02:44]} 11. cxb4 {[%clk 0:02:52]}  Bxb4+ {[%clk 0:02:45]} 12. Bd2 {[%clk 0:02:50]}  Bxd2+ {[%clk 0:02:45]} 13. Nxd2 {[%clk 0:02:51]}  b6 {[%clk 0:02:46]} 14. Nb2 {[%clk 0:02:48]}  Nc5 {[%clk 0:02:46]} 15. a4 {[%clk 0:02:30]}  Qc3 {[%clk 0:02:18]} 16. Bb5+ {[%clk 0:02:24]}  Bd7 {[%clk 0:02:16]} 17. Bxd7+ {[%clk 0:02:22]}  Kxd7 {[%clk 0:02:17]} 18. Rb1 {[%clk 0:02:15]}  Ne4 {[%clk 0:02:16]} 19. Rf1 {[%clk 0:02:06]}  Qe3+ {[%clk 0:02:07]} 20. Qe2 {[%clk 0:02:05]}  Nc3 {[%clk 0:02:07]} 21. Rf2 {[%clk 0:00:58]}  Nxe2 {[%clk 0:01:56]} 0-1


[Site "https://www.chess.com"]

[Event "Titled Tuesday Blitz February 07 Early 2023"]
[White "Minko, Dmitry"]
[Black "Beerdsen, Thomas"]
[WhiteFideId "24188468"]
[BlackFideId "1030108"]
[WhiteElo "2247"]
[BlackElo "2507"]
[Result "0-1"]
[Round "02"]
[TimeControl "180+2"]
[Date "2023.02.07"]
[WhiteClock "0:00:37"]
[BlackClock "0:02:31"]

1. e4 {[%clk 0:03:00]}  e5 {[%clk 0:02:59]} 2. Nf3 {[%clk 0:03:01]}  Nc6 {[%clk 0:02:58]} 3. d4 {[%clk 0:03:01]}  exd4 {[%clk 0:02:59]} 4. Nxd4 {[%clk 0:03:02]}  Nf6 {[%clk 0:02:59]} 5. Nc3 {[%clk 0:03:02]}  Bb4 {[%clk 0:02:58]} 6. Nxc6 {[%clk 0:03:02]}  bxc6 {[%clk 0:02:59]} 7. Bd3 {[%clk 0:03:03]}  d5 {[%clk 0:03:00]} 8. exd5 {[%clk 0:03:03]}  O-O {[%clk 0:02:58]} 9. O-O {[%clk 0:03:03]}  Bg4 {[%clk 0:02:58]} 10. f3 {[%clk 0:03:04]}  Bh5 {[%clk 0:02:58]} 11. Bg5 {[%clk 0:03:04]}  cxd5 {[%clk 0:02:56]} 12. Bxf6 {[%clk 0:02:54]}  Qxf6 {[%clk 0:02:57]} 13. Nxd5 {[%clk 0:02:51]}  Qxb2 {[%clk 0:02:57]} 14. Nxb4 {[%clk 0:02:08]}  Qxb4 {[%clk 0:02:56]} 15. Qe1 {[%clk 0:02:08]}  Qa3 {[%clk 0:02:49]} 16. f4 {[%clk 0:02:00]}  f6 {[%clk 0:02:39]} 17. Qh4 {[%clk 0:01:51]}  Bg6 {[%clk 0:02:38]} 18. Rf3 {[%clk 0:00:47]}  Bxd3 {[%clk 0:02:34]} 19. Rxd3 {[%clk 0:00:47]}  Qc5+ {[%clk 0:02:34]} 20. Qf2 {[%clk 0:00:47]}  Qa5 {[%clk 0:02:32]} 21. Rd7 {[%clk 0:00:41]}  Rad8 {[%clk 0:02:30]} 22. Rad1 {[%clk 0:00:37]}  Rxd7 {[%clk 0:02:30]} 23. Rxd7 {[%clk 0:00:37]}  Qxa2 {[%clk 0:02:30]} 24. Rxc7 {[%clk 0:00:37]}  Qb1+ {[%clk 0:02:31]} 0-1


[Site "https://www.chess.com"]